[Event "FRA-chT Top 12 2019"]
[Site "Brest"]
[Date "2019.05.25"]
[Round "8.5"]
[White "Philippe, Christophe"]
[Black "Delabaca, Romuald"]
[Result "1/2-1/2"]
[ECO "A46"]
[WhiteElo "2378"]
[BlackElo "2360"]
[Annotator "NA"]
[PlyCount "99"]
[EventDate "2019.05.18"]
[EventType "team-tourn"]
[EventCountry "FRA"]
[SourceTitle "playchess.com"]
[Source "ChessBase"]
[SourceQuality "1"]
[TimeControl "40/5400+30:1800+30"]

1. d4 {[%emt 0:00:00]} Nf6 {[%emt 0:00:00]} 2. Nf3 {[%emt 0:00:00]} e6 {[%emt 0:00:04]} 3. Bg5 {[%emt 0:00:09]} c5 {[%emt 0:03:16]} 4. e3 {[%emt 0:00:09]} cxd4 {[%emt 0:01:46]} 5. exd4 {[%emt 0:00:06]} Be7 {[%emt 0:00:45]} 6. Bd3 {[%emt 0:01:36]} b6 {[%emt 0:04:50]} 7. O-O {[%emt 0:01:21]} Bb7 {[%emt 0:01:14]} 8. Nbd2 {[%emt 0:02:49]} O-O {[%emt 0:02:33]} 9. Re1 {[%emt 0:01:28]} d6 {[%emt 0:03:32]} 10. Nf1 {[%emt 0:04:53]} Nbd7 {[%emt 0:03:04]} 11. Ng3 {[%emt 0:04:48]} Re8 {[%emt 0:06:23]} 12. c4 {[%emt 0:07:40]} d5 {[%emt 0:05:59]} 13. cxd5 {[%emt 0:11:40]} Nxd5 {[%emt 0:07:55]} 14. Bxe7 {[%emt 0:01:31]} Rxe7 {[%emt 0:05:41]} 15. Qd2 {[%emt 0:02:00]} Re8 {[%emt 0:09:02]} 16. Rad1 {[%emt 0:05:36]} Qc7 {[%emt 0:07:12]} 17. Ne5 {[%emt 0:13:31]} N7f6 {[%emt 0:03:53]} 18. Qg5 {[%emt 0:04:52]} h6 {[%emt 0:06:37]} 19. Qh4 {[%emt 0:00:06]} Qe7 {[%emt 0:00:19]} 20. a3 {[%emt 0:03:59]} Nd7 {[%emt 0:08:03]} 21. Qxe7 {[%emt 0:05:54]} Rxe7 {[%emt 0:00:12]} 22. Rc1 {[%emt 0:03:02]} N7f6 {[%emt 0:03:22]} 23. Ne2 {[%emt 0:04:26]} a6 {[%emt 0:08:34]} 24. g3 {[%emt 0:02:43]} Ree8 {[%emt 0:00:46]} 25. f3 {[%emt 0:01:42]} Rac8 {[%emt 0:00:44]} 26. Kf2 {[%emt 0:00:15]} Red8 {[%emt 0:00:36]} 27. h4 {[%emt 0:04:28]} Kf8 {[%emt 0:03:30]} 28. g4 {[%emt 0:00:30]} Rxc1 {[%emt 0:00:29]} 29. Rxc1 {[%emt 0:00:15]} Rc8 {[%emt 0:01:07]} 30. Rg1 {[%emt 0:03:34]} Ke7 {[%emt 0:01:29]} 31. g5 {[%emt 0:02:29]} hxg5 {[%emt 0:00:04]} 32. hxg5 {[%emt 0:00:06]} Nd7 {[%emt 0:01:19]} 33. Rh1 {[%emt 0:01:15]} Nxe5 {[%emt 0:01:11]} 34. dxe5 {[%emt 0:00:04]} g6 {[%emt 0:00:04]} 35. Rh7 {[%emt 0:00:33]} Rg8 {[%emt 0:00:22]} 36. Be4 {[%emt 0:00:53]} Ba8 {[%emt 0:01:11]} 37. Nd4 {[%emt 0:04:12]} Kf8 {[%emt 0:00:42]} 38. Kg3 {[%emt 0:01:55]} Ke7 {[%emt 0:00:08]} 39. Ne2 {[%emt 0:01:27]} Bc6 {[%emt 0:00:59]} 40. Nd4 {[%emt 0:01:01]} Ba8 {[%emt 0:00:05]} 41. Kf2 {[%emt 0:03:43]} Bb7 {[%emt 0:04:21]} 42. Nc2 {[%emt 0:04:53]} Ba8 {[%emt 0:02:04]} 43. Kg3 {[%emt 0:04:34]} Bc6 {[%emt 0:02:47]} 44. Ne1 {[%emt 0:02:29]} Ba8 {[%emt 0:06:22]} 45. Ng2 {[%emt 0:00:41]} Bc6 {[%emt 0:01:48]} 46. b4 {[%emt 0:05:07]} Ba8 {[%emt 0:00:21]} 47. Nh4 {[%emt 0:02:21]} Kf8 {[%emt 0:02:53]} 48. Ng2 {[%emt 0:03:39]} Ke7 {[%emt 0:00:05]} 49. Nh4 {[%emt 0:02:00]} Kf8 {[%emt 0:00:07]} 50. Ng2 {[%emt 0:01:37]} 1/2-1/2

[Event "FRA-chT Top 12 2019"]
[Site "Brest"]
[Date "2019.05.25"]
[Round "8.5"]
[White "Payen, Arnaud"]
[Black "Apicella, Manuel"]
[Result "1/2-1/2"]
[ECO "E68"]
[WhiteElo "2358"]
[BlackElo "2502"]
[Annotator "ChessBase"]
[PlyCount "31"]
[EventDate "2019.05.18"]
[EventType "team-tourn"]
[EventCountry "FRA"]
[SourceTitle "playchess.com"]
[Source "ChessBase"]
[SourceQuality "1"]
[TimeControl "40/5400+30:1800+30"]

1. d4 {[%emt 0:00:00]} Nf6 {[%emt 0:00:00]} 2. c4 {[%emt 0:00:00]} g6 {[%emt 0:00:25]} 3. g3 {[%emt 0:00:29]} Bg7 {[%emt 0:00:07]} 4. Bg2 {[%emt 0:00:13]} O-O {[%emt 0:00:07]} 5. Nf3 {[%emt 0:00:15]} d6 {[%emt 0:00:07]} 6. O-O {[%emt 0:00:24]} Nbd7 {[%emt 0:00:06]} 7. Nc3 {[%emt 0:00:26]} e5 {[%emt 0:00:08]} 8. e4 {[%emt 0:01:06]} c6 {[%emt 0:00:21]} 9. Be3 {[%emt 0:03:45]} exd4 {[%emt 0:03:09]} 10. Nxd4 {[%emt 0:00:10]} Re8 {[%emt 0:00:17]} 11. h3 {[%emt 0:00:28]} a5 {[%emt 0:01:24]} 12. Qc2 {[%emt 0:01:01]} Nc5 {[%emt 0:02:01]} 13. Nb3 {[%emt 0:01:37]} Ne6 {[%emt 0:03:20]} 14. Na4 {[%emt 0:00:29]} Nd7 {[%emt 0:00:23]} 15. Rad1 {[%emt 0:01:02]} Qe7 {[%emt 0:00:41]} 16. f4 {[%emt 0:13:48]} 1/2-1/2

[Event "FRA-chT Top 12 2019"]
[Site "Brest"]
[Date "2019.05.25"]
[Round "8.5"]
[White "Ribbegren, Karl Johan"]
[Black "Sokolov, Andrei"]
[Result "1/2-1/2"]
[ECO "A13"]
[WhiteElo "2209"]
[BlackElo "2496"]
[Annotator "ChessBase"]
[PlyCount "53"]
[EventDate "2019.05.18"]
[EventType "team-tourn"]
[EventCountry "FRA"]
[SourceTitle "playchess.com"]
[Source "ChessBase"]
[SourceQuality "1"]
[TimeControl "40/5400+30:1800+30"]

1. c4 {[%emt 0:00:00]} Nf6 {[%emt 0:01:24]} 2. g3 {[%emt 0:00:28]} e6 {[%emt 0:01:08]} 3. Bg2 {[%emt 0:00:34]} d5 {[%emt 0:00:49]} 4. Nf3 {[%emt 0:01:17]} dxc4 {[%emt 0:06:10]} 5. Qc2 {[%emt 0:00:48]} Nbd7 {[%emt 0:03:57]} 6. Na3 {[%emt 0:01:13]} Nd5 {[%emt 0:04:39]} 7. Nxc4 {[%emt 0:01:42]} Be7 {[%emt 0:09:13]} 8. O-O {[%emt 0:01:17]} O-O {[%emt 0:01:26]} 9. b3 {[%emt 0:07:31]} c5 {[%emt 0:08:27]} 10. Bb2 {[%emt 0:08:28]} b6 {[%emt 0:02:15]} 11. Rad1 {[%emt 0:04:48]} Bb7 {[%emt 0:03:40]} 12. d4 {[%emt 0:01:37]} b5 {[%emt 0:08:18]} 13. Nce5 {[%emt 0:03:15]} Nxe5 {[%emt 0:03:42]} 14. Nxe5 {[%emt 0:04:21]} Rc8 {[%emt 0:02:15]} 15. dxc5 {[%emt 0:03:36]} Rxc5 {[%emt 0:05:56]} 16. Qd2 {[%emt 0:07:16]} Qc7 {[%emt 0:09:47]} 17. Rc1 {[%emt 0:00:23]} Rd8 {[%emt 0:04:45]} 18. Bd4 {[%emt 0:12:10]} Nf6 {[%emt 0:09:55]} 19. Bxb7 {[%emt 0:11:13]} Rxd4 {[%emt 0:02:29]} 20. Qxd4 {[%emt 0:07:57]} Rxc1 {[%emt 0:00:11]} 21. Rxc1 {[%emt 0:00:29]} Qxc1+ {[%emt 0:00:06]} 22. Kg2 {[%emt 0:00:05]} Qc5 {[%emt 0:00:55]} 23. Qxc5 {[%emt 0:00:58]} Bxc5 {[%emt 0:00:07]} 24. Nd3 {[%emt 0:01:00]} Bd6 {[%emt 0:01:15]} 25. e4 {[%emt 0:05:14]} Ng4 {[%emt 0:01:46]} 26. h3 {[%emt 0:01:26]} Ne5 {[%emt 0:00:16]} 27. Nxe5 {[%emt 0:00:43]} 1/2-1/2

[Event "FRA-chT Top 12 2019"]
[Site "Brest"]
[Date "2019.05.25"]
[Round "8.6"]
[White "Hamdouchi, Hicham"]
[Black "Maze, Sebastien"]
[Result "1/2-1/2"]
[ECO "B47"]
[WhiteElo "2584"]
[BlackElo "2579"]
[Annotator "ChessBase"]
[PlyCount "140"]
[EventDate "2019.05.18"]
[EventType "team-tourn"]
[EventCountry "FRA"]
[SourceTitle "playchess.com"]
[Source "ChessBase"]
[SourceQuality "1"]
[TimeControl "40/5400+30:1800+30"]

1. e4 {[%emt 0:00:00]} c5 {[%emt 0:00:00]} 2. Nf3 {[%emt 0:00:05]} Nc6 {[%emt 0:00:00]} 3. d4 {[%emt 0:00:25]} cxd4 {[%emt 0:00:00]} 4. Nxd4 {[%emt 0:00:07]} e6 {[%emt 0:00:00]} 5. Nc3 {[%emt 0:02:49]} Qc7 {[%emt 0:00:01]} 6. g3 {[%emt 0:00:49]} a6 {[%emt 0:00:21]} 7. Bg2 {[%emt 0:00:08]} Nf6 {[%emt 0:00:05]} 8. O-O {[%emt 0:00:49]} h5 {[%emt 0:00:03]} 9. Nxc6 {[%emt 0:07:39]} dxc6 {[%emt 0:00:07]} 10. a4 {[%emt 0:01:34]} a5 {[%emt 0:01:02]} 11. Qe2 {[%emt 0:07:34]} e5 {[%emt 0:02:32]} 12. Nd1 {[%emt 0:02:32]} h4 {[%emt 0:08:53]} 13. Ne3 {[%emt 0:07:58]} hxg3 {[%emt 0:00:21]} 14. hxg3 {[%emt 0:00:36]} Bc5 {[%emt 0:02:54]} 15. Rd1 {[%emt 0:01:07]} g6 {[%emt 0:08:12]} 16. b3 {[%emt 0:04:28]} b6 {[%emt 0:22:41]} 17. Bb2 {[%emt 0:06:49]} Ba6 {[%emt 0:00:05]} 18. Qf3 {[%emt 0:03:05]} Qe7 {[%emt 0:00:44]} 19. Rd2 {[%emt 0:03:36]} Rd8 {[%emt 0:18:57]} 20. Rad1 {[%emt 0:00:24]} Rxd2 {[%emt 0:00:08]} 21. Rxd2 {[%emt 0:00:05]} O-O {[%emt 0:02:38]} 22. Ng4 {[%emt 0:28:00]} Nxg4 {[%emt 0:00:45]} 23. Qxg4 {[%emt 0:00:07]} Bc8 {[%emt 0:03:09]} 24. Qh4 {[%emt 0:04:22]} Qxh4 {[%emt 0:00:49]} 25. gxh4 {[%emt 0:00:06]} f6 {[%emt 0:00:14]} 26. Kh2 {[%emt 0:01:28]} Kf7 {[%emt 0:02:01]} 27. Kg3 {[%emt 0:00:09]} Rh8 {[%emt 0:03:10]} 28. Bf1 {[%emt 0:00:53]} Be6 {[%emt 0:01:31]} 29. Bc3 {[%emt 0:06:43]} Ke7 {[%emt 0:01:09]} 30. Bg2 {[%emt 0:01:54]} Rh6 {[%emt 0:04:36]} 31. Re2 {[%emt 0:01:37]} Rh8 {[%emt 0:00:43]} 32. Bf3 {[%emt 0:01:53]} Bd6 {[%emt 0:00:56]} 33. Re1 {[%emt 0:00:31]} Rg8 {[%emt 0:00:58]} 34. Kg2 {[%emt 0:01:27]} f5 {[%emt 0:06:30]} 35. Rh1 {[%emt 0:00:55]} f4 {[%emt 0:00:58]} 36. Be2 {[%emt 0:01:13]} Rh8 {[%emt 0:01:33]} 37. Bc4 {[%emt 0:02:10]} Bxc4 {[%emt 0:01:23]} 38. bxc4 {[%emt 0:00:03]} Ke6 {[%emt 0:00:11]} 39. Kf3 {[%emt 0:02:30]} Be7 {[%emt 0:05:19]} 40. Kg4 {[%emt 0:00:18]} Rh5 {[%emt 0:00:21]} 41. f3 {[%emt 0:02:00]} Rh8 {[%emt 0:07:55]} 42. Be1 {[%emt 0:09:20]} Rd8 {[%emt 0:02:50]} 43. Bf2 {[%emt 0:09:41]} Rd2 {[%emt 0:00:34]} 44. Bxb6 {[%emt 0:00:09]} Rg2+ {[%emt 0:01:22]} 45. Kh3 {[%emt 0:00:04]} Rg3+ {[%emt 0:00:04]} 46. Kh2 {[%emt 0:00:04]} Rxf3 {[%emt 0:00:05]} 47. Rg1 {[%emt 0:00:41]} Kf7 {[%emt 0:03:07]} 48. Bxa5 {[%emt 0:01:57]} Bxh4 {[%emt 0:05:28]} 49. Bb4 {[%emt 0:01:26]} c5 {[%emt 0:04:58]} 50. Bxc5 {[%emt 0:00:51]} Rc3 {[%emt 0:00:07]} 51. a5 {[%emt 0:02:22]} Bg3+ {[%emt 0:00:57]} 52. Kg2 {[%emt 0:00:36]} Rxc4 {[%emt 0:03:32]} 53. Bb6 {[%emt 0:00:13]} Rxc2+ {[%emt 0:00:21]} 54. Kf3 {[%emt 0:00:17]} Ra2 {[%emt 0:00:51]} 55. Rc1 {[%emt 0:01:27]} Bh4 {[%emt 0:01:15]} 56. Rc7+ {[%emt 0:00:28]} Ke8 {[%emt 0:00:42]} 57. Rg7 {[%emt 0:02:01]} Bf6 {[%emt 0:02:55]} 58. Rxg6 {[%emt 0:01:05]} Kf7 {[%emt 0:00:04]} 59. Rh6 {[%emt 0:01:55]} Ra3+ {[%emt 0:00:18]} 60. Kf2 {[%emt 0:00:01]} Bg5 {[%emt 0:01:27]} 61. Rh1 {[%emt 0:00:58]} Kg6 {[%emt 0:01:21]} 62. Kg2 {[%emt 0:00:38]} Be7 {[%emt 0:00:43]} 63. Rh3 {[%emt 0:01:23]} Ra2+ {[%emt 0:00:28]} 64. Kf3 {[%emt 0:00:51]} Bb4 {[%emt 0:01:15]} 65. Bc7 {[%emt 0:00:26]} Bc3 {[%emt 0:00:43]} 66. Kg4 {[%emt 0:00:56]} Bd4 {[%emt 0:00:37]} 67. Rd3 {[%emt 0:00:53]} Rg2+ {[%emt 0:01:04]} 68. Kf3 {[%emt 0:00:53]} Rf2+ {[%emt 0:01:19]} 69. Kg4 {[%emt 0:00:03]} Rg2+ {[%emt 0:00:40]} 70. Kf3 {[%emt 0:00:03]} Rf2+ {[%emt 0:00:31]} 1/2-1/2

[Event "FRA-chT Top 12 2019"]
[Site "Brest"]
[Date "2019.05.25"]
[Round "8.6"]
[White "Moussard, Jules"]
[Black "Rambaldi, Francesco"]
[Result "0-1"]
[ECO "C25"]
[WhiteElo "2583"]
[BlackElo "2558"]
[Annotator "ChessBase"]
[PlyCount "94"]
[EventDate "2019.05.18"]
[EventType "team-tourn"]
[EventCountry "FRA"]
[SourceTitle "playchess.com"]
[Source "ChessBase"]
[SourceQuality "1"]
[TimeControl "40/5400+30:1800+30"]

1. e4 {[%emt 0:00:00]} e5 {[%emt 0:00:00]} 2. Nc3 {[%emt 0:00:00]} Nc6 {[%emt 0:00:42]} 3. g3 {[%emt 0:01:44]} Bc5 {[%emt 0:09:32]} 4. Bg2 {[%emt 0:00:34]} d6 {[%emt 0:08:51]} 5. d3 {[%emt 0:02:03]} f5 {[%emt 0:04:14]} 6. Na4 {[%emt 0:18:43]} Nf6 {[%emt 0:12:39]} 7. Ne2 {[%emt 0:16:01]} O-O {[%emt 0:05:52]} 8. O-O {[%emt 0:01:31]} Qe8 {[%emt 0:04:01]} 9. Nxc5 {[%emt 0:17:25]} dxc5 {[%emt 0:00:08]} 10. Nc3 {[%emt 0:00:27]} fxe4 {[%emt 0:10:09]} 11. Nxe4 {[%emt 0:10:06]} Nxe4 {[%emt 0:01:30]} 12. Bxe4 {[%emt 0:01:25]} Bf5 {[%emt 0:03:00]} 13. c3 {[%emt 0:01:41]} b6 {[%emt 0:03:25]} 14. Qa4 {[%emt 0:05:44]} Na5 {[%emt 0:06:54]} 15. Qxe8 {[%emt 0:08:49]} Raxe8 {[%emt 0:00:07]} 16. Bd5+ {[%emt 0:00:10]} Be6 {[%emt 0:01:03]} 17. Bg2 {[%emt 0:00:28]} Bd7 {[%emt 0:01:37]} 18. f4 {[%emt 0:01:36]} Bc6 {[%emt 0:02:07]} 19. Bxc6 {[%emt 0:03:49]} Nxc6 {[%emt 0:00:06]} 20. Re1 {[%emt 0:01:07]} Kf7 {[%emt 0:03:24]} 21. Be3 {[%emt 0:01:18]} Rd8 {[%emt 0:03:25]} 22. Rad1 {[%emt 0:00:07]} Rd5 {[%emt 0:00:37]} 23. Kf2 {[%emt 0:00:19]} Rfd8 {[%emt 0:02:10]} 24. Ke2 {[%emt 0:00:10]} exf4 {[%emt 0:00:31]} 25. Bxf4 {[%emt 0:00:15]} g5 {[%emt 0:00:34]} 26. Bc1 {[%emt 0:02:17]} Kg6 {[%emt 0:00:26]} 27. h4 {[%emt 0:01:23]} h6 {[%emt 0:00:36]} 28. hxg5 {[%emt 0:00:02]} hxg5 {[%emt 0:00:06]} 29. Kf2 {[%emt 0:02:56]} Ne5 {[%emt 0:03:20]} 30. d4 {[%emt 0:00:04]} cxd4 {[%emt 0:00:14]} 31. cxd4 {[%emt 0:00:07]} c5 {[%emt 0:00:22]} 32. b3 {[%emt 0:01:32]} cxd4 {[%emt 0:00:30]} 33. Bb2 {[%emt 0:00:27]} Kf5 {[%emt 0:04:03]} 34. Kg2 {[%emt 0:00:55]} Ng4 {[%emt 0:02:24]} 35. Kf3 {[%emt 0:00:31]} Re5 {[%emt 0:01:19]} 36. Rxe5+ {[%emt 0:00:52]} Nxe5+ {[%emt 0:00:06]} 37. Kf2 {[%emt 0:00:16]} Ke4 {[%emt 0:00:45]} 38. Re1+ {[%emt 0:00:05]} Kd5 {[%emt 0:00:21]} 39. Rd1 {[%emt 0:00:06]} Nc6 {[%emt 0:00:26]} 40. g4 {[%emt 0:00:52]} Ke4 {[%emt 0:03:01]} 41. Bc1 {[%emt 0:03:44]} Ne5 {[%emt 0:01:51]} 42. Kg3 {[%emt 0:03:23]} Nf3 {[%emt 0:05:47]} 43. Rf1 {[%emt 0:01:34]} Rc8 {[%emt 0:00:13]} 44. Bb2 {[%emt 0:01:36]} Rc2 {[%emt 0:00:48]} 45. Rxf3 {[%emt 0:00:52]} Rxb2 {[%emt 0:00:05]} 46. Rf7 {[%emt 0:00:16]} Rxa2 {[%emt 0:01:02]} 47. Re7+ {[%emt 0:00:19]} Kd3 {[%emt 0:00:13]} 0-1

[Event "FRA-chT Top 12 2019"]
[Site "Brest"]
[Date "2019.05.25"]
[Round "8.6"]
[White "Burri, Quentin"]
[Black "Dornbusch, Tatiana"]
[Result "1/2-1/2"]
[ECO "B05"]
[WhiteElo "2425"]
[BlackElo "2285"]
[Annotator "NA"]
[PlyCount "125"]
[EventDate "2019.05.18"]
[EventType "team-tourn"]
[EventCountry "FRA"]
[SourceTitle "playchess.com"]
[Source "ChessBase"]
[SourceQuality "1"]
[TimeControl "40/5400+30:1800+30"]

1. e4 {[%emt 0:00:00]} Nf6 {[%emt 0:00:00]} 2. e5 {[%emt 0:00:00]} Nd5 {[%emt 0:00:00]} 3. d4 {[%emt 0:00:00]} d6 {[%emt 0:00:06]} 4. Nf3 {[%emt 0:00:00]} Bg4 {[%emt 0:04:04]} 5. Be2 {[%emt 0:00:12]} Nc6 {[%emt 0:00:45]} 6. c4 {[%emt 0:03:26]} Nb6 {[%emt 0:00:18]} 7. exd6 {[%emt 0:01:18]} cxd6 {[%emt 0:08:36]} 8. d5 {[%emt 0:09:33]} Bxf3 {[%emt 0:07:45]} 9. Bxf3 {[%emt 0:01:24]} Ne5 {[%emt 0:00:23]} 10. Be2 {[%emt 0:00:26]} Rc8 {[%emt 0:18:42]} 11. b3 {[%emt 0:10:53]} g6 {[%emt 0:05:46]} 12. a4 {[%emt 0:09:08]} Bg7 {[%emt 0:00:44]} 13. Ra2 {[%emt 0:00:41]} O-O {[%emt 0:06:39]} 14. Be3 {[%emt 0:01:31]} a5 {[%emt 0:06:03]} 15. O-O {[%emt 0:01:38]} Ned7 {[%emt 0:04:32]} 16. Na3 {[%emt 0:06:16]} Nc5 {[%emt 0:00:50]} 17. Nb5 {[%emt 0:00:15]} Nbd7 {[%emt 0:01:47]} 18. Re1 {[%emt 0:01:10]} Re8 {[%emt 0:01:24]} 19. Bg5 {[%emt 0:08:30]} Ne4 {[%emt 0:02:49]} 20. Be3 {[%emt 0:01:26]} Nc3 {[%emt 0:00:20]} 21. Nxc3 {[%emt 0:00:55]} Bxc3 {[%emt 0:00:05]} 22. Rf1 {[%emt 0:00:33]} Nc5 {[%emt 0:00:54]} 23. Rc2 {[%emt 0:18:07]} Bg7 {[%emt 0:00:40]} 24. Rc1 {[%emt 0:01:22]} Qb6 {[%emt 0:01:37]} 25. Rb1 {[%emt 0:00:18]} Qb4 {[%emt 0:09:17]} 26. Qc2 {[%emt 0:07:16]} f5 {[%emt 0:07:04]} 27. g4 {[%emt 0:04:00]} Qc3 {[%emt 0:04:12]} 28. Qxc3 {[%emt 0:00:35]} Bxc3 {[%emt 0:00:02]} 29. Kh1 {[%emt 0:02:13]} fxg4 {[%emt 0:02:44]} 30. Bxg4 {[%emt 0:00:05]} Rcd8 {[%emt 0:01:07]} 31. f4 {[%emt 0:01:31]} Kh8 {[%emt 0:03:25]} 32. f5 {[%emt 0:02:55]} gxf5 {[%emt 0:00:08]} 33. Bxf5 {[%emt 0:00:14]} Rf8 {[%emt 0:00:34]} 34. Rf3 {[%emt 0:00:46]} Be5 {[%emt 0:01:12]} 35. Rbf1 {[%emt 0:07:28]} Rf7 {[%emt 0:01:13]} 36. Bc2 {[%emt 0:00:20]} Rxf3 {[%emt 0:00:51]} 37. Rxf3 {[%emt 0:00:04]} Rg8 {[%emt 0:01:08]} 38. Rh3 {[%emt 0:01:06]} Rg7 {[%emt 0:00:14]} 39. Bh6 {[%emt 0:00:21]} Rf7 {[%emt 0:00:46]} 40. Kg2 {[%emt 0:01:05]} Kg8 {[%emt 0:00:32]} 41. Be3 Rg7+ {[%emt 0:03:58]} 42. Kf1 {[%emt 0:04:32]} Rf7+ {[%emt 0:00:33]} 43. Ke1 {[%emt 0:01:01]} b6 {[%emt 0:01:52]} 44. Rh5 {[%emt 0:01:55]} Rg7 {[%emt 0:09:11]} 45. Kf2 {[%emt 0:00:54]} Rf7+ {[%emt 0:00:19]} 46. Kg2 Rg7+ {[%emt 0:00:19]} 47. Rg5 {[%emt 0:00:44]} Bf6 {[%emt 0:03:24]} 48. Rxg7+ {[%emt 0:00:40]} Kxg7 {[%emt 0:00:01]} 49. Kf3 {[%emt 0:00:30]} Be5 {[%emt 0:04:18]} 50. h3 {[%emt 0:01:38]} Bf6 {[%emt 0:00:22]} 51. Kg4 {[%emt 0:00:16]} Kg8 {[%emt 0:03:12]} 52. Kf5 {[%emt 0:02:13]} Kf7 {[%emt 0:00:31]} 53. Bd1 {[%emt 0:00:16]} Bh4 {[%emt 0:03:27]} 54. b4 {[%emt 0:06:53]} axb4 {[%emt 0:00:20]} 55. Bxc5 {[%emt 0:00:06]} dxc5 {[%emt 0:00:32]} 56. Bh5+ {[%emt 0:00:04]} Kf8 {[%emt 0:01:11]} 57. Ke6 {[%emt 0:00:08]} b3 {[%emt 0:00:45]} 58. Bd1 {[%emt 0:00:06]} b2 {[%emt 0:00:23]} 59. Bc2 {[%emt 0:00:04]} h6 {[%emt 0:00:30]} 60. Kd7 {[%emt 0:00:18]} Be1 {[%emt 0:00:18]} 61. Ke6 {[%emt 0:00:21]} Bg3 {[%emt 0:00:34]} 62. Kd7 {[%emt 0:00:10]} Be1 {[%emt 0:00:32]} 63. Ke6 {[%emt 0:00:04]} 1/2-1/2

[Event "FRA-chT Top 12 2019"]
[Site "Brest"]
[Date "2019.05.25"]
[Round "8.6"]
[White "Godart, Francois"]
[Black "Terrieux, Kevin"]
[Result "0-1"]
[ECO "A62"]
[WhiteElo "2419"]
[BlackElo "2455"]
[Annotator "ChessBase"]
[PlyCount "82"]
[EventDate "2019.05.18"]
[EventType "team-tourn"]
[EventCountry "FRA"]
[SourceTitle "playchess.com"]
[Source "ChessBase"]
[SourceQuality "1"]
[TimeControl "40/5400+30:1800+30"]

1. d4 {[%emt 0:00:00]} Nf6 {[%emt 0:00:00]} 2. c4 {[%emt 0:00:19]} e6 {[%emt 0:00:00]} 3. g3 {[%emt 0:00:35]} c5 {[%emt 0:00:14]} 4. d5 {[%emt 0:00:50]} exd5 {[%emt 0:00:17]} 5. cxd5 {[%emt 0:00:05]} d6 {[%emt 0:00:20]} 6. Nc3 {[%emt 0:00:22]} g6 {[%emt 0:00:13]} 7. Bg2 {[%emt 0:00:12]} Bg7 {[%emt 0:00:12]} 8. Nf3 {[%emt 0:00:41]} O-O {[%emt 0:00:12]} 9. O-O {[%emt 0:00:11]} Re8 {[%emt 0:00:20]} 10. Bf4 {[%emt 0:01:05]} Bf5 {[%emt 0:00:53]} 11. Nd2 {[%emt 0:10:59]} Nh5 {[%emt 0:01:21]} 12. e4 {[%emt 0:11:51]} Nxf4 {[%emt 0:03:33]} 13. gxf4 {[%emt 0:00:30]} Bd7 {[%emt 0:00:59]} 14. Nc4 {[%emt 0:04:43]} Bxc3 {[%emt 0:00:55]} 15. bxc3 {[%emt 0:01:47]} Bb5 {[%emt 0:00:15]} 16. Qb3 {[%emt 0:03:00]} Bxc4 {[%emt 0:00:33]} 17. Qxc4 {[%emt 0:00:06]} Nd7 {[%emt 0:00:09]} 18. Qd3 {[%emt 0:07:56]} Nf6 {[%emt 0:09:09]} 19. Bf3 {[%emt 0:05:59]} Re7 {[%emt 0:10:22]} 20. Rfe1 {[%emt 0:04:08]} Qf8 {[%emt 0:02:04]} 21. e5 {[%emt 0:14:29]} Rae8 {[%emt 0:13:36]} 22. Rad1 {[%emt 0:12:10]} dxe5 {[%emt 0:37:48]} 23. fxe5 {[%emt 0:00:39]} Rxe5 {[%emt 0:01:18]} 24. Rxe5 {[%emt 0:00:14]} Rxe5 {[%emt 0:00:02]} 25. d6 {[%emt 0:00:12]} Qd8 {[%emt 0:07:24]} 26. Bxb7 {[%emt 0:03:35]} Nh5 {[%emt 0:02:01]} 27. d7 {[%emt 0:05:49]} Kg7 {[%emt 0:01:31]} 28. Qd6 {[%emt 0:01:43]} Rg5+ {[%emt 0:01:44]} 29. Kf1 {[%emt 0:02:04]} Nf6 {[%emt 0:00:32]} 30. Bc6 {[%emt 0:01:44]} Rf5 {[%emt 0:00:44]} 31. Re1 {[%emt 0:00:53]} Nxd7 {[%emt 0:01:08]} 32. Bxd7 {[%emt 0:00:58]} Rf6 {[%emt 0:00:12]} 33. Qe7 {[%emt 0:04:00]} Qc7 {[%emt 0:01:23]} 34. Kg1 {[%emt 0:00:26]} Qb7 {[%emt 0:01:28]} 35. Bh3 {[%emt 0:00:51]} Qd5 {[%emt 0:01:06]} 36. Qe5 {[%emt 0:01:06]} Qxa2 {[%emt 0:01:13]} 37. Qxc5 {[%emt 0:00:41]} a5 {[%emt 0:00:07]} 38. Re8 {[%emt 0:00:23]} Qb1+ {[%emt 0:01:05]} 39. Bf1 {[%emt 0:00:04]} Rf5 {[%emt 0:00:13]} 40. Qf8+ {[%emt 0:00:11]} Kf6 {[%emt 0:00:09]} 41. Re7 {[%emt 0:32:25]} Rg5+ {[%emt 0:31:41]} 0-1